bitfinex/quotes_SOLUSD_20240808
["timestamp","ask_amount","ask_price","bid_price","bid_amount"]
[1723075879897,0.17,145.63,145.58,6.6327]
[1723075880116,45.0,145.65,145.58,6.6327]
[1723075880596,0.84,145.64,145.58,6.6327]
[1723075880799,0.34,145.64,145.58,6.6327]
[1723075881183,20.34,145.64,145.58,6.6327]
[1723075881387,45.5,145.63,145.56,16.5501]
[1723075881587,45.5,145.63,145.54,6.4942]
[1723075881588,6.8681,145.6,145.54,6.4942]
[1723075881809,6.8701,145.56,145.5,6.4942]
[1723075882108,0.67,145.55,145.5,6.4942]
[1723075882308,0.67,145.54,145.5,6.4942]
[1723075882611,0.17,145.54,145.5,6.4942]
[1723075883807,0.17,145.54,145.47,16.0705108]
[1723075883808,0.67,145.54,145.47,16.0705108]
[1723075884015,0.17,145.53,145.47,16.0705108]
[1723075884331,0.5,145.52,145.47,0.7059108]
[1723075884482,20.75,145.53,145.47,0.7059108]
[1723075884483,0.67,145.51,145.47,0.7059108]
[1723075884678,6.8733,145.49,145.47,0.7059108]
[1723075884885,7.7137,145.48,145.47,0.7059108]
[1723075885195,52.7137,145.48,145.47,0.7059108]
[1723075885786,45.34,145.48,145.47,0.7059108]
[1723075886300,52.7137,145.48,145.47,0.7059108]
[1723075886720,72.7137,145.48,145.47,0.7059108]
[1723075887005,82.3554,145.48,145.34,10.77254093]
[1723075887205,82.3554,145.48,145.29,6.1741]
[1723075887206,6.8761,145.43,145.29,6.1741]
[1723075887411,20.34,145.42,145.29,16.95094232]
[1723075887593,0.17,145.42,145.29,16.95094232]
[1723075888181,45.17,145.42,145.3,20.0]
[1723075888386,0.17,145.41,145.3,20.0]
[1723075888610,0.17,145.41,145.29,16.95094232]
[1723075889111,6.878,145.39,145.29,16.95094232]
[1723075889317,52.2186,145.38,145.29,6.1741]
[1723075889515,45.34,145.38,145.29,6.1741]
[1723075889716,7.7185,145.38,145.29,6.1741]
[1723075890012,45.0,145.37,145.29,6.1741]
[1723075890187,0.84,145.36,145.29,6.1741]
[1723075890389,45.0,145.37,145.29,6.1741]
[1723075890614,0.5,145.36,145.29,6.1741]
[1723075890914,0.5,145.35,145.27,16.6494]
[1723075891092,0.17,145.34,145.27,16.6494]
[1723075891524,45.17,145.34,145.27,16.6494]
[1723075891688,45.34,145.34,145.27,16.6494]
[1723075891888,52.2204,145.34,145.25,10.77959445]
[1723075892089,72.2204,145.34,145.24,6.0631]
[1723075892392,72.2204,145.34,145.22,15.2915]
[1723075892919,79.36486891,145.34,145.22,15.2915]
[1723075893108,79.36486891,145.34,145.33,0.4643136]
[1723075893620,79.36486891,145.34,145.19,6.2112]
[1723075893621,6.8836,145.28,145.19,6.2112]
[1723075893912,6.8843,145.26,145.19,6.2112]
[1723075894116,45.0,145.25,145.19,6.2112]
[1723075894291,45.0,145.27,145.19,6.2112]
[1723075894491,45.0,145.28,145.19,6.2112]
[1723075895012,45.0,145.29,145.19,6.2112]
[1723075895387,0.34,145.28,145.19,6.2112]
[1723075896324,0.34,145.28,145.2,20.0]
[1723075896708,389.1,145.32,145.21,1.37682215]
[1723075897212,395.9813,145.32,145.2,20.0]
[1723075897395,0.5,145.31,145.2,20.0]
[1723075897599,6.8832,145.29,145.2,20.0]
[1723075898202,45.34,145.28,145.2,20.0]
[1723075898411,45.84,145.28,145.2,20.0]
[1723075898803,45.34,145.28,145.2,20.0]
[1723075899405,7.3838,145.27,145.2,20.0]
[1723075899599,45.34,145.26,145.19,6.2112]
[1723075899920,45.0,145.26,145.19,6.2112]
[1723075900100,7.3828,145.29,145.19,6.2112]
[1723075900299,45.34,145.28,145.19,6.2112]
[1723075900603,0.34,145.28,145.19,6.2112]
[1723075900810,395.9826,145.3,145.19,6.2112]
[1723075900811,389.1,145.3,145.2,21.2971554]
[1723075900996,0.17,145.29,145.2,20.0]
[1723075901403,0.67,145.29,145.2,20.0]
[1723075901620,0.17,145.29,145.2,20.0]
[1723075902121,45.84,145.29,145.2,20.0]
[1723075902327,45.84,145.29,145.19,6.2112]
[1723075902634,6.8836,145.28,145.19,6.2112]
[1723075902821,45.84,145.27,145.19,6.2112]
[1723075903127,45.34,145.27,145.19,6.2112]
[1723075903295,45.0,145.26,145.19,6.2112]
[1723075903495,0.17,145.27,145.19,6.2112]
[1723075903720,45.0,145.28,145.19,6.2112]
[1723075903902,52.2229,145.29,145.19,6.2112]
[1723075904107,52.2227,145.29,145.19,6.2112]
[1723075904313,52.7227,145.29,145.19,6.2112]
[1723075904504,45.34,145.29,145.19,6.2112]
[1723075905307,389.1,145.34,145.19,7.38323203]
[1723075905530,409.68,145.37,145.2,65.34]
[1723075905825,6.8814,145.32,145.2,20.34]
[1723075906207,0.5,145.33,145.2,20.0]
[1723075906411,0.5,145.35,145.21,0.17]
[1723075906632,6.8805,145.34,145.21,0.34]
[1723075906836,7.3809,145.33,145.21,0.34]
[1723075907128,6.8804,145.34,145.2,20.0]
[1723075907306,20.0,145.33,145.21,0.34]
[1723075907509,27.3809,145.33,145.21,0.34]
[1723075907721,0.5,145.32,145.21,0.34]
[1723075908036,6.8823,145.3,145.2,20.0]
[1723075908220,20.0,145.33,145.19,6.2112]
[1723075908221,6.8832,145.28,145.19,6.2112]
[1723075908408,45.84,145.27,145.19,6.2112]
[1723075908612,0.5,145.26,145.19,6.2112]
[1723075908810,0.17,145.25,145.19,6.2112]
[1723075909113,0.34,145.25,145.19,6.2112]
[1723075909320,20.0,145.28,145.19,6.2112]
[1723075909522,45.17,145.27,145.19,6.2112]
[1723075910027,45.67,145.27,145.19,6.2112]
[1723075910229,45.17,145.27,145.19,6.2112]
[1723075910414,389.1,145.31,145.19,6.2112]
[1723075910613,7.13026262,145.36,145.2,21.51639626]
[1723075910816,6.8826,145.3,145.22,16.257]
[1723075911115,6.8819,145.31,145.22,16.257]
[1723075911315,409.68,145.34,145.22,16.257]
[1723075911525,6.8827,145.29,145.22,16.257]
[1723075911720,6.8844,145.26,145.19,6.2112]
[1723075912034,0.5,145.25,145.19,6.2112]
[1723075912420,0.5,145.31,145.19,6.2112]
[1723075912611,7.13026262,145.36,145.2,1.37700779]
[1723075912939,7.13026262,145.36,145.21,15.7336]
[1723075913110,389.1,145.38,145.22,21.37654]
[1723075913111,395.9789,145.38,145.22,21.37654]
[1723075913311,395.9789,145.38,145.23,0.34]
[1723075913526,395.9789,145.38,145.25,6.4374]
[1723075913728,6.879,145.37,145.26,20.0]
[1723075913933,7.379,145.37,145.26,20.0]
[1723075914131,0.5,145.37,145.25,6.4374]
[1723075914326,6.8822,145.31,145.25,6.4374]
[1723075914513,7.3822,145.31,145.25,6.4374]
[1723075914831,45.17,145.3,145.25,6.4374]
[1723075915035,0.17,145.29,145.25,6.4374]
[1723075915237,0.67,145.29,145.21,22.3704]
[1723075915445,0.17,145.28,145.21,22.3704]
[1723075915813,0.17,145.29,145.21,22.3704]
[1723075916112,45.0,145.3,145.21,22.3704]
[1723075916314,0.5,145.32,145.21,22.3704]
[1723075916628,0.5,145.32,145.22,0.17]
[1723075916940,0.5,145.32,145.22,20.0]
[1723075917676,6.881,145.33,145.22,20.0]
[1723075917934,45.34,145.32,145.22,20.0]
[1723075918147,52.7214,145.32,145.22,20.0]
[1723075918327,6.8818,145.31,145.21,22.3704]
[1723075918527,45.84,145.3,145.21,22.3704]
[1723075919141,6.8828,145.29,145.21,22.3704]
[1723075919450,45.84,145.28,145.18,0.8243136]
[1723075919650,0.5,145.27,145.18,0.8243136]
[1723075919832,0.34,145.26,145.18,0.8243136]
[1723075920146,45.0,145.28,145.18,0.8243136]
[1723075920351,6.8794,145.36,145.18,0.8243136]
[1723075920532,389.1,145.37,145.18,0.8243136]
[1723075920533,6.8809,145.33,145.18,0.8243136]
[1723075920735,389.1,145.37,145.18,0.8243136]
[1723075920736,0.5,145.32,145.18,0.8243136]
[1723075920938,0.5,145.32,145.19,0.34]
[1723075921125,0.5,145.32,145.18,20.8243136]
[1723075921331,21.08,145.36,145.19,0.17]
[1723075921558,6.8809,145.33,145.19,0.34]
[1723075921858,47.9614,145.32,145.18,20.8243136]
[1723075922154,6.8819,145.31,145.18,20.8243136]
[1723075922337,7.3825,145.3,145.18,20.8243136]
[1723075922530,0.5,145.29,145.18,20.8243136]
[1723075922727,45.5,145.29,145.18,20.8243136]
[1723075922930,45.0,145.29,145.18,20.8243136]
[1723075923140,0.5,145.31,145.19,0.17]
[1723075923349,0.5,145.31,145.18,20.8243136]
[1723075923847,27.3813,145.32,145.19,0.34]
[1723075924157,6.8831,145.29,145.18,20.8243136]
[1723075924329,0.17,145.28,145.18,20.8243136]
[1723075924648,395.3487,145.38,145.2,6.4813]
[1723075924846,395.3487,145.38,145.22,51.5599]
[1723075924847,396.4791,145.37,145.22,51.5599]
[1723075925057,396.4791,145.37,145.23,20.0]
[1723075925371,389.1,145.37,145.24,1.37669881]
[1723075925661,389.1,145.37,145.25,0.17]
[1723075925828,389.1,145.37,145.26,6.3715]
[1723075926036,0.5,145.36,145.27,20.0]
[1723075926478,0.5,145.37,145.27,20.0]
[1723075926830,0.17,145.36,145.26,6.3715]
[1723075927135,14.50809174,145.38,145.26,6.3715]
[1723075927338,20.0,145.37,145.27,20.0]
[1723075927638,20.0,145.37,145.26,6.3715]
[1723075927639,0.5,145.36,145.26,6.3715]
[1723075927852,0.5,145.35,145.26,6.3715]
[1723075928257,6.8804,145.34,145.26,6.3715]
[1723075928433,45.17,145.33,145.26,6.3715]
[1723075928752,52.5509,145.33,145.26,6.3715]
[1723075928938,0.67,145.32,145.26,6.3715]
[1723075929143,0.17,145.31,145.26,6.3715]
[1723075929735,0.34,145.32,145.26,6.3715]
[1723075930364,389.1,145.35,145.26,6.3715]
[1723075930546,6.881,145.33,145.27,20.0]
[1723075930741,7.3805,145.34,145.27,20.0]
[1723075931166,0.5,145.34,145.26,6.3715]
[1723075931460,6.8809,145.33,145.26,6.3715]
[1723075931666,0.17,145.32,145.26,6.3715]
[1723075931839,45.34,145.32,145.26,6.3715]
[1723075932039,45.34,145.32,145.22,22.2382]
[1723075932237,45.84,145.32,145.22,22.2382]
[1723075933149,45.84,145.32,145.23,20.0]
[1723075933353,45.34,145.32,145.23,20.0]
[1723075933860,45.0,145.32,145.23,20.0]
[1723075934062,0.5,145.34,145.23,20.0]
[1723075934260,389.1,145.35,145.25,6.3846]
[1723075934465,389.1,145.35,145.27,15.1859]
[1723075934651,7.12949174,145.38,145.28,20.17]
[1723075934846,0.5,145.4,145.28,20.0]
[1723075935162,7.13332835,145.4,145.28,20.0]
[1723075935364,0.5,145.4,145.28,20.0]
[1723075935545,20.5,145.4,145.28,20.0]
[1723075935886,27.3776,145.4,145.28,20.0]
[1723075936042,6.8786,145.38,145.28,20.0]
[1723075936237,0.5,145.39,145.28,20.0]
[1723075936444,6.8799,145.35,145.27,15.1859]
[1723075936662,6.88,145.35,145.27,15.1859]
[1723075936869,45.84,145.34,145.27,15.1859]
[1723075937169,6.8812,145.33,145.27,15.1859]
[1723075937465,45.84,145.32,145.27,15.1859]
[1723075937661,45.34,145.32,145.27,15.1859]
[1723075938062,0.5,145.31,145.27,15.1859]
[1723075938265,45.34,145.32,145.27,15.1859]
[1723075938760,45.0,145.31,145.27,15.1859]
[1723075938957,0.34,145.32,145.27,15.1859]
[1723075939468,389.1,145.37,145.27,15.1859]
[1723075939781,389.1,145.37,145.28,20.0]
[1723075940451,6.8755,145.45,145.3,6.604]
[1723075940765,395.7347,145.47,145.31,100.3793]
[1723075940766,10.78003648,145.46,145.31,100.3793]
[1723075940949,7.13072375,145.47,145.33,6.1666]
[1723075941153,7.13072375,145.47,145.34,21.62759375]
[1723075941867,7.13072375,145.47,145.34,20.0]
[1723075942045,7.13072375,145.47,145.35,1.45750514]
[1723075942242,6.875,145.46,145.35,0.17]
[1723075942448,0.5,145.45,145.34,20.0]
[1723075943171,6.8761,145.44,145.34,20.0]
[1723075943467,45.34,145.43,145.34,20.0]
[1723075944246,20.5,145.46,145.34,20.0]
[1723075944573,21.6824,145.53,145.36,16.0699]
[1723075944869,0.5,145.55,145.37,28.14328313]
[1723075945074,17.1756,145.56,145.4,16.0699]
[1723075945075,7.13592103,145.54,145.4,16.0699]
[1723075945249,7.13592103,145.54,145.41,21.54492614]
[1723075945644,43.82,145.63,145.41,21.54492614]
[1723075945645,6.8694,145.58,145.43,49.8252]
[1723075945874,6.8694,145.58,145.45,15.3439]
[1723075946169,14.0059531,145.6,145.46,21.54448841]
[1723075946374,7.6373531,145.6,145.46,20.17]
[1723075946546,6.8696,145.57,145.46,20.0]
[1723075947556,52.21,145.56,145.46,20.0]
[1723075947758,6.8708,145.55,145.46,20.0]
[1723075948053,0.17,145.54,145.46,20.0]
[1723075948376,52.2113,145.54,145.46,20.0]
[1723075948550,45.84,145.54,145.45,15.3439]
[1723075948751,45.0,145.53,145.45,15.3439]
[1723075948953,0.17,145.52,145.45,15.3439]
[1723075949158,45.0,145.55,145.45,15.3439]
[1723075949380,0.34,145.54,145.45,15.3439]
[1723075950051,20.84,145.54,145.45,15.3439]
[1723075950253,6.8724,145.51,145.45,15.3439]
[1723075950452,45.34,145.5,145.45,15.3439]
[1723075950652,0.34,145.5,145.45,15.3439]
[1723075951058,0.17,145.5,145.45,15.3439]
[1723075951857,0.17,145.5,145.43,6.0052]
[1723075951858,0.67,145.5,145.43,6.0052]
[1723075952059,0.17,145.49,145.43,6.0052]
[1723075952573,45.17,145.49,145.43,6.0052]
[1723075952784,0.5,145.48,145.43,6.0052]
[1723075952957,0.17,145.48,145.43,6.0052]
[1723075953355,20.0,145.54,145.43,6.0052]
[1723075953555,0.5,145.54,145.43,6.0052]
[1723075953782,6.8715,145.53,145.43,6.0052]
[1723075953983,0.5,145.52,145.43,6.0052]
[1723075954182,6.8729,145.5,145.43,6.0052]
[1723075954382,7.3723,145.51,145.43,6.0052]
[1723075954888,45.17,145.5,145.43,6.0052]
[1723075955069,0.5,145.49,145.43,6.0052]
[1723075955271,0.34,145.48,145.43,6.0052]
[1723075955685,45.34,145.48,145.43,6.0052]
[1723075955865,0.5,145.47,145.43,6.0052]
[1723075956069,45.0,145.48,145.43,6.0052]
[1723075956587,45.34,145.49,145.43,6.0052]
[1723075957170,52.7135,145.49,145.43,6.0052]
[1723075957376,6.8742,145.47,145.43,6.0052]
[1723075957587,45.67,145.46,145.43,6.0052]
[1723075957888,45.67,145.46,145.41,16.2266]
[1723075957889,45.17,145.46,145.41,16.2266]
[1723075958071,45.0,145.47,145.41,16.2266]
[1723075958273,45.17,145.48,145.41,16.2266]
[1723075958765,6.8742,145.47,145.41,16.2266]
[1723075958967,45.17,145.46,145.41,16.2266]
[1723075959169,45.17,145.46,145.39,6.4357]
[1723075959170,0.67,145.45,145.39,6.4357]
[1723075959695,0.17,145.44,145.39,6.4357]
[1723075960064,0.34,145.45,145.39,6.4357]
[1723075960271,41.42,145.45,145.35,6.2539]
[1723075960580,6.8774,145.41,145.35,6.2539]
[1723075960798,6.8774,145.41,145.24,20.0]
[1723075960799,6.8801,145.35,145.27,22.2926]
[1723075960972,0.17,145.34,145.27,22.2926]
[1723075961301,6.8799,145.35,145.27,22.2926]
[1723075961507,45.34,145.34,145.27,22.2926]
[1723075961976,0.34,145.34,145.27,22.2926]
[1723075962171,0.17,145.34,145.27,22.2926]
[1723075962394,45.0,145.35,145.27,22.2926]
[1723075962682,45.0,145.36,145.27,22.2926]
[1723075962885,0.34,145.35,145.27,22.2926]
[1723075963194,0.17,145.35,145.27,22.2926]
[1723075963676,45.0,145.36,145.27,22.2926]
[1723075963894,0.5,145.35,145.27,22.2926]
[1723075964297,45.17,145.37,145.28,20.0]
[1723075964698,6.8799,145.36,145.28,20.0]
[1723075965015,0.17,145.35,145.28,20.0]
[1723075965304,6.88,145.35,145.27,22.2926]
[1723075965507,45.17,145.34,145.27,22.2926]
[1723075965690,52.0504,145.34,145.27,22.2926]
[1723075966003,0.67,145.33,145.27,22.2926]
[1723075966182,0.5,145.33,145.27,22.2926]
[1723075966386,45.17,145.34,145.27,22.2926]
[1723075966581,0.5,145.33,145.27,22.2926]
[1723075967088,45.17,145.34,145.27,22.2926]
[1723075967485,0.67,145.34,145.27,22.2926]
[1723075967798,0.17,145.33,145.27,22.2926]
[1723075968004,45.17,145.33,145.27,22.2926]
[1723075968306,7.0513,145.32,145.27,22.2926]
[1723075968489,45.0,145.31,145.27,22.2926]
[1723075968695,0.17,145.32,145.27,22.2926]
[1723075968912,45.0,145.33,145.27,22.2926]
[1723075969713,6.8794,145.37,145.27,22.2926]
[1723075970010,20.0,145.36,145.27,22.2926]
[1723075970408,0.5,145.35,145.27,22.2926]
[1723075970582,6.8795,145.36,145.27,22.2926]
[1723075970787,7.3799,145.35,145.27,22.2926]
[1723075971003,6.8799,145.35,145.27,22.2926]
[1723075971407,0.17,145.34,145.27,22.2926]
[1723075971820,45.34,145.35,145.27,22.2926]
[1723075972005,7.7199,145.35,145.27,22.2926]
[1723075972195,45.0,145.34,145.27,22.2926]
[1723075972518,0.17,145.33,145.27,22.2926]
[1723075972823,0.84,145.33,145.27,22.2926]
[1723075973119,6.8818,145.31,145.23,22.2913]
[1723075973301,45.5,145.3,145.24,20.0]
[1723075973619,45.0,145.3,145.24,20.0]
[1723075974118,0.67,145.29,145.24,20.0]
[1723075974324,0.67,145.29,145.23,22.2913]
[1723075974516,0.17,145.28,145.23,22.2913]
[1723075974692,0.5,145.27,145.23,22.2913]
[1723075975024,0.5,145.27,145.19,21.6962]
[1723075975196,0.5,145.26,145.19,21.6962]
[1723075975399,0.34,145.25,145.18,0.8243136]
[1723075975625,0.5,145.24,145.18,0.8243136]
[1723075975931,0.84,145.23,145.18,0.8243136]
[1723075976224,6.8861,145.22,145.18,0.8243136]
[1723075976424,45.84,145.21,145.18,0.8243136]
[1723075976737,0.5,145.2,145.18,0.8243136]
[1723075976909,45.17,145.21,145.18,0.8243136]
[1723075977428,45.0,145.21,145.18,0.8243136]
[1723075978111,26.8837,145.27,145.18,0.8243136]
[1723075978310,45.34,145.26,145.18,0.8243136]
[1723075978712,6.8855,145.24,145.18,0.8243136]
[1723075978909,45.34,145.23,145.18,0.8243136]
[1723075979227,0.34,145.23,145.18,0.8243136]
[1723075979421,0.17,145.22,145.18,0.8243136]
[1723075979603,0.67,145.23,145.18,0.8243136]
[1723075979801,0.17,145.22,145.18,0.8243136]
[1723075980531,27.14608652,145.25,145.18,0.8243136]
[1723075980732,16.6274,145.32,145.18,0.8243136]
[1723075980925,6.8847,145.25,145.18,0.8243136]
[1723075981109,6.8841,145.27,145.18,0.8243136]
[1723075981430,6.8841,145.27,145.16,19.8243136]
[1723075981924,0.34,145.26,145.16,19.8243136]
[1723075982127,45.17,145.27,145.16,19.8243136]
[1723075982502,45.67,145.27,145.16,19.8243136]
[1723075982706,7.14462867,145.31,145.2,35.89]
[1723075982906,389.1,145.33,145.22,23.0905]
[1723075983205,0.5,145.32,145.22,23.0905]
[1723075983803,21.08,145.32,145.22,23.0905]
[1723075984224,6.8824,145.3,145.22,23.0905]
[1723075984432,0.5,145.29,145.22,6.4563]
[1723075984639,0.5,145.3,145.22,6.4563]
[1723075984807,396.24384206,145.33,145.22,6.4563]
[1723075985127,0.5,145.32,145.22,6.4563]
[1723075985328,6.8838,145.27,145.18,22.6028]
[1723075985516,0.5,145.26,145.18,22.6028]
[1723075986211,0.17,145.25,145.18,22.6028]
[1723075986819,0.84,145.25,145.18,22.6028]
[1723075987016,0.5,145.26,145.18,22.6028]
[1723075987313,0.67,145.25,145.18,22.6028]
[1723075987503,7.3847,145.25,145.18,22.6028]
[1723075987707,45.17,145.24,145.18,6.6318]
[1723075987910,0.5,145.23,145.18,6.6318]
[1723075988136,45.0,145.24,145.18,6.6318]
[1723075988723,45.17,145.25,145.18,6.6318]
[1723075988934,0.67,145.24,145.18,6.6318]
[1723075989114,52.0548,145.25,145.18,6.6318]
[1723075989115,45.17,145.25,145.18,6.6318]
[1723075989840,0.17,145.24,145.18,6.6318]
[1723075990134,7.5551,145.24,145.14,22.256]
[1723075990307,6.8861,145.22,145.14,22.256]
[1723075990504,0.84,145.21,145.14,22.256]
[1723075990707,45.34,145.21,145.14,22.256]
[1723075991121,0.34,145.21,145.14,22.256]
[1723075991829,6.8875,145.19,145.09,22.3043]
[1723075992030,0.5,145.18,145.09,22.3043]
[1723075992620,20.0,145.21,145.09,22.3043]
[1723075992807,0.17,145.2,145.09,22.3043]
[1723075993027,0.5,145.2,145.09,22.3043]
[1723075993227,6.8884,145.17,145.09,22.3043]
[1723075993424,0.84,145.16,145.05,6.1279]
[1723075993734,0.5,145.16,145.05,6.1279]
[1723075994033,57.7986,145.2,145.05,6.1279]
[1723075994034,0.5,145.15,145.05,42.0179]
[1723075994218,0.67,145.14,145.05,42.0179]
[1723075994406,45.0,145.16,145.05,42.0179]
[1723075994611,0.17,145.15,145.05,42.0179]
[1723075994907,0.84,145.15,145.05,42.0179]
[1723075995111,6.8903,145.13,145.05,6.1279]
[1723075995319,45.34,145.12,145.05,6.1279]
[1723075995517,45.0,145.12,145.05,6.1279]
[1723075995742,7.13744621,145.16,145.05,6.1279]
[1723075996034,66.42,145.15,145.05,6.1279]
[1723075996242,7.3899,145.14,145.05,6.1279]
[1723075996417,7.3899,145.14,145.06,20.0]
[1723075996418,45.34,145.13,145.06,20.0]
[1723075996740,0.5,145.12,145.06,20.0]
[1723075996925,45.34,145.13,145.06,20.0]
[1723075997115,0.34,145.13,145.05,6.1279]
[1723075997313,20.58,145.11,145.04,15.8031]
[1723075997521,7.5619,145.1,145.03,0.8243136]
[1723075997753,45.17,145.09,145.03,0.8243136]
[1723075998623,15.6807,145.15,145.03,0.8243136]
[1723075998624,7.6344932,145.17,145.03,0.8243136]
[1723075998819,20.58,145.15,145.03,0.8243136]
[1723075999035,28.3099,145.14,145.03,0.8243136]
[1723075999341,20.58,145.12,145.03,0.8243136]
[1723075999536,0.84,145.11,145.03,0.8243136]
[1723075999716,0.17,145.11,145.03,0.8243136]
[1723076000038,0.17,145.12,145.03,0.8243136]
[1723076000241,0.17,145.13,145.03,0.8243136]
[1723076000536,6.8903,145.13,145.03,0.8243136]
[1723076000840,52.7309,145.12,145.03,0.8243136]
[1723076001041,0.17,145.11,145.03,0.8243136]
[1723076001657,0.5,145.1,145.03,0.8243136]
[1723076001860,0.34,145.09,145.03,0.8243136]
[1723076002017,0.5,145.08,145.03,0.8243136]
[1723076002330,0.84,145.07,145.03,0.8243136]
[1723076002521,0.17,145.07,145.03,0.8243136]
[1723076002912,0.17,145.08,145.03,0.8243136]
[1723076003134,0.5,145.07,145.03,0.8243136]
[1723076003340,0.5,145.07,144.88,20.0]
[1723076003341,6.8965,145.0,144.93,6.1599]
[1723076003519,0.5,144.99,144.93,6.1599]
[1723076003720,27.3955,145.03,144.93,6.1599]
[1723076003941,45.34,145.02,144.93,6.1599]
[1723076004249,20.5,145.01,144.93,6.1599]
[1723076004415,6.8975,144.98,144.89,0.8243136]
[1723076004614,0.5,144.97,144.89,0.8243136]
[1723076004828,0.34,144.96,144.89,0.8243136]
[1723076005340,7.2379,144.97,144.89,0.8243136]
[1723076005542,45.0,144.96,144.89,0.8243136]
[1723076005717,45.0,144.98,144.89,0.8243136]
[1723076006037,0.17,144.97,144.89,20.8243136]
[1723076006552,0.34,144.97,144.89,20.8243136]
[1723076006837,45.0,144.98,144.89,20.8243136]
[1723076007235,45.17,144.99,144.89,20.8243136]
[1723076007431,0.17,144.98,144.89,20.8243136]
[1723076007632,0.67,144.98,144.89,20.8243136]
[1723076007813,0.17,144.97,144.89,20.8243136]
[1723076008441,0.34,144.98,144.89,20.8243136]
[1723076008650,6.8998,144.94,144.89,0.8243136]
[1723076008942,52.12642015,144.99,144.89,0.8243136]
[1723076008943,52.7402,144.93,144.89,0.8243136]
[1723076009140,45.34,144.93,144.89,0.8243136]
[1723076009751,45.5,144.92,144.89,0.8243136]
[1723076010041,0.17,144.91,144.89,0.8243136]
[1723076010466,6.9013,144.9,144.89,0.8243136]
[1723076010617,45.0,144.9,144.89,0.8243136]
[1723076010819,45.17,144.9,144.89,0.8243136]
[1723076011019,45.34,144.9,144.89,0.8243136]
[1723076011241,45.84,144.9,144.89,0.8243136]
[1723076011740,52.7413,144.9,144.89,0.8243136]
[1723076012322,52.2413,144.9,144.89,0.8243136]
[1723076012521,45.34,144.9,144.89,0.8243136]
[1723076012725,45.84,144.9,144.89,0.8243136]
[1723076013229,52.7413,144.9,144.89,0.8243136]
[1723076013423,65.84,144.9,144.79,6.3218]
[1723076013623,65.84,144.89,144.76,16.2916]
[1723076013929,6.9032,144.86,144.76,16.2916]
[1723076014149,45.34,144.85,144.76,16.2916]
[1723076014329,45.84,144.85,144.76,16.2916]
[1723076015029,45.34,144.85,144.77,20.0]
[1723076015264,45.34,144.85,144.75,6.4879]
[1723076015265,45.84,144.85,144.75,6.4879]
[1723076015621,62.3907,144.85,144.74,0.8243136]
[1723076015830,20.0,144.84,144.74,0.8243136]
[1723076016046,45.84,144.83,144.74,0.8243136]
[1723076016246,6.9061,144.8,144.74,0.8243136]
[1723076016452,52.7467,144.79,144.74,0.8243136]
[1723076016657,7.5767,144.79,144.74,0.8243136]
[1723076016857,45.17,144.78,144.74,0.8243136]
[1723076017060,0.67,144.77,144.74,0.8243136]